[Event "XIX Najdorf Memorial 2019"]
[Site "Warsaw"]
[Date "2019.07.14"]
[Round "9.15"]
[White "Goluch, Piotr"]
[Black "Gagare, Shardul"]
[Result "1/2-1/2"]
[ECO "A05"]
[WhiteElo "2386"]
[BlackElo "2476"]
[Annotator "ChessBase"]
[PlyCount "120"]
[EventDate "2019.07.06"]
[EventType "swiss"]
[EventCountry "POL"]
[SourceTitle "playchess.com"]
[Source "ChessBase"]
[SourceQuality "1"]
[TimeControl "40/5400+30:1800+30"]

1. Nf3 {[%emt 0:00:00]} Nf6 {[%emt 0:00:00]} 2. g3 {[%emt 0:00:00]} d6 {[%emt 0:01:01]} 3. d4 {[%emt 0:00:07]} g6 {[%emt 0:00:21]} 4. Bg2 {[%emt 0:00:19]} Bg7 {[%emt 0:00:23]} 5. O-O {[%emt 0:00:08]} O-O {[%emt 0:01:38]} 6. c4 {[%emt 0:00:44]} Bf5 {[%emt 0:00:52]} 7. Nc3 {[%emt 0:00:45]} Ne4 {[%emt 0:00:22]} 8. Nd5 {[%emt 0:00:18]} c6 {[%emt 0:00:40]} 9. Ne3 {[%emt 0:00:04]} Bd7 {[%emt 0:01:50]} 10. Qc2 {[%emt 0:04:16]} f5 {[%emt 0:10:16]} 11. b4 {[%emt 0:00:06]} a5 {[%emt 0:19:30]} 12. b5 {[%emt 0:00:06]} a4 {[%emt 0:00:21]} 13. Rb1 {[%emt 0:00:21]} c5 {[%emt 0:11:15]} 14. dxc5 {[%emt 0:01:41]} Nxc5 {[%emt 0:00:22]} 15. Rd1 {[%emt 0:13:34]} Be8 {[%emt 0:05:35]} 16. Nd5 {[%emt 0:00:30]} h6 {[%emt 0:00:25]} 17. Ba3 {[%emt 0:19:42]} Nbd7 {[%emt 0:00:56]} 18. Nd4 {[%emt 0:00:45]} Bf7 {[%emt 0:15:16]} 19. b6 {[%emt 0:07:08]} Kh7 {[%emt 0:10:47]} 20. Nb5 {[%emt 0:01:49]} Bxd5 {[%emt 0:06:29]} 21. Bxd5 {[%emt 0:00:37]} Qxb6 {[%emt 0:01:15]} 22. Nd4 {[%emt 0:00:43]} Qc7 {[%emt 0:05:01]} 23. Ne6 {[%emt 0:00:22]} Nxe6 {[%emt 0:00:07]} 24. Bxe6 {[%emt 0:00:03]} Ra6 {[%emt 0:05:00]} 25. Rb5 {[%emt 0:05:18]} b6 {[%emt 0:00:40]} 26. h4 {[%emt 0:01:08]} Nf6 {[%emt 0:01:45]} 27. h5 {[%emt 0:02:09]} Nxh5 {[%emt 0:00:47]} 28. Bxf5 {[%emt 0:00:03]} gxf5 {[%emt 0:00:28]} 29. Rxf5 {[%emt 0:00:03]} Rxf5 {[%emt 0:00:33]} 30. Qxf5+ {[%emt 0:00:04]} Kg8 {[%emt 0:00:07]} 31. Qxh5 {[%emt 0:00:14]} Ra5 {[%emt 0:00:21]} 32. c5 {[%emt 0:00:41]} bxc5 {[%emt 0:00:25]} 33. Qg6 {[%emt 0:00:44]} c4 {[%emt 0:00:26]} 34. Bc1 {[%emt 0:00:27]} Qc5 {[%emt 0:01:03]} 35. Bxh6 {[%emt 0:04:26]} Qe5 {[%emt 0:00:04]} 36. Rb1 {[%emt 0:01:55]} Ra8 {[%emt 0:00:07]} 37. Bxg7 {[%emt 0:03:41]} Qxg7 {[%emt 0:00:05]} 38. Qe4 {[%emt 0:00:03]} Rf8 {[%emt 0:00:03]} 39. Qxc4+ {[%emt 0:00:03]} Qf7 {[%emt 0:00:02]} 40. Rb4 {[%emt 0:00:00]} Qxc4 {[%emt 0:00:00]} 41. Rxc4 {[%emt 0:03:04]} Ra8 {[%emt 0:01:05]} 42. Rf4 {[%emt 0:00:29]} e5 {[%emt 0:01:39]} 43. Rf6 {[%emt 0:00:24]} Rd8 {[%emt 0:10:13]} 44. g4 {[%emt 0:02:31]} Kg7 {[%emt 0:00:09]} 45. g5 {[%emt 0:00:06]} d5 {[%emt 0:00:40]} 46. Re6 {[%emt 0:00:33]} e4 {[%emt 0:00:40]} 47. Re5 {[%emt 0:00:20]} a3 {[%emt 0:01:21]} 48. Kg2 {[%emt 0:00:42]} Kg6 {[%emt 0:01:26]} 49. Kg3 {[%emt 0:16:37]} Rb8 {[%emt 0:14:50]} 50. f4 {[%emt 0:20:49]} exf3 {[%emt 0:01:28]} 51. exf3 {[%emt 0:00:03]} d4 {[%emt 0:01:38]} 52. Rd5 {[%emt 0:00:58]} Rb2 {[%emt 0:00:46]} 53. Kf4 {[%emt 0:00:07]} Rxa2 {[%emt 0:01:00]} 54. Rxd4 {[%emt 0:02:20]} Ra1 {[%emt 0:01:17]} 55. Rd6+ {[%emt 0:01:36]} Kg7 {[%emt 0:00:04]} 56. Ra6 {[%emt 0:03:19]} a2 {[%emt 0:00:19]} 57. Kf5 {[%emt 0:00:05]} Rf1 {[%emt 0:00:17]} 58. Ra7+ {[%emt 0:00:11]} Kg8 {[%emt 0:00:21]} 59. Rxa2 Rxf3+ {[%emt 0:00:06]} 60. Kg6 {[%emt 0:01:15]} Rf8 {[%emt 0:00:13]} 1/2-1/2

[Event "XIX Najdorf Memorial 2019"]
[Site "Warsaw"]
[Date "2019.07.14"]
[Round "9.15"]
[White "Punin, Andrii"]
[Black "Fiedorek, Michal"]
[Result "1-0"]
[ECO "B51"]
[WhiteElo "2305"]
[BlackElo "2241"]
[Annotator "ChessBase"]
[PlyCount "95"]
[EventDate "2019.07.06"]
[EventType "swiss"]
[EventCountry "POL"]
[SourceTitle "playchess.com"]
[Source "ChessBase"]
[SourceQuality "1"]
[TimeControl "40/5400+30:1800+30"]

1. e4 c5 2. Nf3 d6 3. Bb5+ Nd7 4. Ba4 Ngf6 5. O-O a6 6. c4 g6 7. Nc3 Bg7 8. h3 O-O 9. d3 Ne5 10. Nxe5 dxe5 11. Be3 Qd6 12. Rb1 b6 13. a3 Rd8 14. Bc2 Bd7 15. b4 Bc6 16. bxc5 bxc5 17. Nd5 Nxd5 18. cxd5 Bd7 19. Ba4 Rac8 20. Bxd7 Rxd7 21. Qb3 e6 22. dxe6 Qxe6 23. Rfc1 Bf8 24. Qxe6 fxe6 25. Rb3 h5 26. Kf1 Kh7 27. Ke2 Rc6 28. Rc4 Rdc7 29. Bd2 Bh6 30. Ba5 Rd7 31. a4 Bf8 32. Rb6 Rdd6 33. Rb7+ Kg8 34. Bc3 Rb6 35. Rxb6 Rxb6 36. Bxe5 Rb3 37. g4 hxg4 38. hxg4 Ra3 39. d4 Ra2+ 40. Kf3 cxd4 41. Bxd4 Ra3+ 42. Kg2 Rb3 43. Bc3 Rb1 44. Ba5 Ra1 45. Bb6 Rb1 46. a5 Rb4 47. Rc8 Kf7 48. Rxf8+ 1-0

[Event "XIX Najdorf Memorial 2019"]
[Site "Warsaw"]
[Date "2019.07.14"]
[Round "9.16"]
[White "Markiewicz, Jerzy"]
[Black "Deszczynski, Adam"]
[Result "0-1"]
[ECO "B28"]
[WhiteElo "2170"]
[BlackElo "2304"]
[Annotator "ChessBase"]
[PlyCount "74"]
[EventDate "2019.07.06"]
[EventType "swiss"]
[EventCountry "POL"]
[SourceTitle "playchess.com"]
[Source "ChessBase"]
[SourceQuality "1"]
[TimeControl "40/5400+30:1800+30"]

1. e4 {[%emt 0:00:00]} c5 {[%emt 0:00:28]} 2. Nf3 {[%emt 0:00:00]} a6 {[%emt 0:03:56]} 3. c4 {[%emt 0:01:10]} e6 {[%emt 0:06:09]} 4. Nc3 {[%emt 0:00:44]} Qc7 {[%emt 0:04:47]} 5. a3 {[%emt 0:01:10]} Nf6 {[%emt 0:03:21]} 6. d4 {[%emt 0:00:49]} cxd4 {[%emt 0:01:11]} 7. Nxd4 {[%emt 0:00:09]} b6 {[%emt 0:06:24]} 8. Be3 {[%emt 0:03:44]} Bb7 {[%emt 0:02:23]} 9. f3 {[%emt 0:00:32]} d6 {[%emt 0:02:01]} 10. Rc1 {[%emt 0:00:33]} Nbd7 {[%emt 0:02:11]} 11. Be2 {[%emt 0:01:39]} Be7 {[%emt 0:01:18]} 12. O-O {[%emt 0:00:52]} O-O {[%emt 0:00:35]} 13. Qb3 {[%emt 0:21:54]} Rac8 {[%emt 0:06:52]} 14. Rfd1 {[%emt 0:00:15]} Qb8 {[%emt 0:06:43]} 15. Qa2 {[%emt 0:00:47]} Bd8 {[%emt 0:06:57]} 16. Kh1 {[%emt 0:00:43]} Bc7 {[%emt 0:00:36]} 17. Bg1 {[%emt 0:00:08]} Qa8 {[%emt 0:00:49]} 18. b4 {[%emt 0:00:41]} Kh8 {[%emt 0:13:11]} 19. Qd2 {[%emt 0:14:38]} Rg8 {[%emt 0:08:49]} 20. Be3 {[%emt 0:16:30]} h6 {[%emt 0:04:55]} 21. Bf1 {[%emt 0:05:54]} g5 {[%emt 0:01:34]} 22. Na4 {[%emt 0:00:49]} Qb8 {[%emt 0:01:24]} 23. Bg1 {[%emt 0:00:57]} Rg6 {[%emt 0:00:41]} 24. Qe2 {[%emt 0:05:11]} g4 {[%emt 0:02:25]} 25. c5 {[%emt 0:00:21]} dxc5 {[%emt 0:03:42]} 26. bxc5 {[%emt 0:00:11]} gxf3 {[%emt 0:02:04]} 27. Nxf3 {[%emt 0:02:08]} Bf4 {[%emt 0:02:12]} 28. Rc4 {[%emt 0:08:05]} b5 {[%emt 0:00:33]} 29. Rcd4 {[%emt 0:00:06]} Ne5 {[%emt 0:01:23]} 30. Nb6 {[%emt 0:05:56]} Rcg8 {[%emt 0:00:38]} 31. Nxe5 {[%emt 0:00:21]} Qxe5 {[%emt 0:01:05]} 32. Nd7 {[%emt 0:00:26]} Nxd7 {[%emt 0:00:44]} 33. Rxd7 {[%emt 0:00:05]} Qxe4 {[%emt 0:00:18]} 34. Qxe4 {[%emt 0:04:27]} Bxe4 {[%emt 0:00:03]} 35. Bd4+ {[%emt 0:00:06]} e5 {[%emt 0:00:38]} 36. Rxf7 {[%emt 0:00:08]} Rxg2 {[%emt 0:00:56]} 37. Rxf4 {[%emt 0:01:14]} Rg1# 0-1

[Event "XIX Najdorf Memorial 2019"]
[Site "Warsaw"]
[Date "2019.07.14"]
[Round "9.17"]
[White "Marczuk, Dominik"]
[Black "Harazinska, Magdalena"]
[Result "1-0"]
[ECO "A03"]
[WhiteElo "2300"]
[BlackElo "2004"]
[Annotator "ChessBase"]
[PlyCount "95"]
[EventDate "2019.07.06"]
[EventType "swiss"]
[EventCountry "POL"]
[SourceTitle "playchess.com"]
[Source "ChessBase"]
[SourceQuality "1"]
[TimeControl "40/5400+30:1800+30"]

1. f4 {[%emt 0:00:00]} d5 {[%emt 0:00:00]} 2. Nf3 {[%emt 0:00:00]} c5 {[%emt 0:00:29]} 3. g3 {[%emt 0:00:00]} Nc6 {[%emt 0:01:52]} 4. Bg2 {[%emt 0:00:00]} g6 {[%emt 0:00:29]} 5. O-O {[%emt 0:00:08]} Bg7 {[%emt 0:00:03]} 6. d3 {[%emt 0:00:46]} e5 {[%emt 0:06:29]} 7. Nc3 {[%emt 0:09:08]} Be6 {[%emt 0:12:17]} 8. Ng5 {[%emt 0:08:03]} Nge7 {[%emt 0:06:13]} 9. fxe5 {[%emt 0:04:39]} O-O {[%emt 0:06:25]} 10. Nxe6 {[%emt 0:02:25]} fxe6 {[%emt 0:00:55]} 11. Rxf8+ {[%emt 0:00:06]} Qxf8 {[%emt 0:00:48]} 12. Bh3 {[%emt 0:00:14]} Nf5 {[%emt 0:07:19]} 13. e4 {[%emt 0:02:02]} dxe4 {[%emt 0:00:04]} 14. Nxe4 {[%emt 0:00:25]} Bxe5 {[%emt 0:02:28]} 15. c3 {[%emt 0:01:09]} Bg7 {[%emt 0:15:59]} 16. Qe2 {[%emt 0:03:55]} Ne5 {[%emt 0:04:28]} 17. Bf4 {[%emt 0:00:57]} Nf7 {[%emt 0:05:08]} 18. Rf1 {[%emt 0:04:40]} Qe7 {[%emt 0:01:29]} 19. g4 {[%emt 0:07:52]} Nh4 {[%emt 0:01:48]} 20. Qf2 {[%emt 0:00:47]} b6 {[%emt 0:09:35]} 21. Bg3 {[%emt 0:06:59]} g5 {[%emt 0:00:44]} 22. Qxf7+ {[%emt 0:04:53]} Qxf7 {[%emt 0:00:26]} 23. Rxf7 {[%emt 0:00:05]} Kxf7 {[%emt 0:00:50]} 24. Nxg5+ {[%emt 0:00:05]} Kg6 {[%emt 0:01:08]} 25. Bxh4 {[%emt 0:00:06]} Bf6 {[%emt 0:01:10]} 26. Bg2 {[%emt 0:01:16]} Rg8 {[%emt 0:03:42]} 27. Be4+ {[%emt 0:00:49]} Kh6 {[%emt 0:00:49]} 28. Nf7+ {[%emt 0:00:53]} Kg7 {[%emt 0:00:20]} 29. Bxf6+ {[%emt 0:02:51]} Kxf6 {[%emt 0:00:15]} 30. Nh6 {[%emt 0:00:12]} Rg7 {[%emt 0:01:37]} 31. h4 {[%emt 0:00:21]} Ke5 {[%emt 0:00:26]} 32. Kf2 {[%emt 0:00:35]} Kf4 {[%emt 0:00:17]} 33. Bf3 {[%emt 0:06:36]} Rd7 {[%emt 0:04:06]} 34. Be2 {[%emt 0:00:39]} Rg7 {[%emt 0:02:21]} 35. g5 {[%emt 0:00:26]} e5 {[%emt 0:01:13]} 36. Ng4 {[%emt 0:01:09]} c4 {[%emt 0:00:31]} 37. Nf6 {[%emt 0:01:53]} Rf7 {[%emt 0:00:20]} 38. Nd5+ {[%emt 0:05:57]} Kf5 {[%emt 0:00:10]} 39. dxc4 {[%emt 0:00:11]} Ke4+ {[%emt 0:01:41]} 40. Nf6+ {[%emt 0:00:00]} Kf4 {[%emt 0:00:00]} 41. Bf3 {[%emt 0:01:44]} h6 {[%emt 0:03:21]} 42. Nd5+ {[%emt 0:00:08]} Kf5 {[%emt 0:00:15]} 43. gxh6 {[%emt 0:00:23]} Kg6 {[%emt 0:01:19]} 44. Ke3 {[%emt 0:00:08]} Kxh6 {[%emt 0:00:07]} 45. b4 {[%emt 0:00:05]} Kg6 {[%emt 0:00:24]} 46. c5 {[%emt 0:00:42]} bxc5 {[%emt 0:00:05]} 47. bxc5 {[%emt 0:00:04]} Kf5 {[%emt 0:00:41]} 48. c6 {[%emt 0:00:09]} 1-0

[Event "XIX Najdorf Memorial 2019"]
[Site "Warsaw"]
[Date "2019.07.14"]
[Round "9.18"]
[White "Bebel, Arkadiusz"]
[Black "Dzida, Kamil"]
[Result "0-1"]
[ECO "B22"]
[WhiteElo "2290"]
[BlackElo "1987"]
[Annotator "ChessBase"]
[PlyCount "96"]
[EventDate "2019.07.06"]
[EventType "swiss"]
[EventCountry "POL"]
[SourceTitle "playchess.com"]
[Source "ChessBase"]
[SourceQuality "1"]
[TimeControl "40/5400+30:1800+30"]

1. e4 c5 2. c3 Nf6 3. e5 Nd5 4. Nf3 Nc6 5. Bc4 Nb6 6. Bb3 c4 7. Bc2 d5 8. exd6 e5 9. O-O Bxd6 10. d4 Bg4 11. Re1 O-O 12. d5 e4 13. Rxe4 Ne5 14. Rxg4 Nxg4 15. Qd4 Qd7 16. Nbd2 Rae8 17. h3 Ne5 18. Nxe5 Bxe5 19. Qh4 f5 20. Nf3 Bf6 21. Qf4 g6 22. Be3 Qb5 23. Rd1 Nxd5 24. Ba4 Qxa4 25. Rxd5 Rd8 26. Rxd8 Rxd8 27. g4 Qd1+ 28. Kg2 Qd5 29. gxf5 gxf5 30. Bxa7 Qe4 31. Qh6 Bg7 32. Qh5 Rd6 33. Be3 f4 34. Bd4 Bxd4 35. cxd4 Qg6+ 36. Qg4 h5 37. Qxg6+ Rxg6+ 38. Kf1 Rb6 39. b3 cxb3 40. axb3 Rxb3 41. Ke2 Kf7 42. Ne5+ Ke6 43. Nd3 Rxd3 44. Kxd3 Kd5 45. Kc3 h4 46. Kd3 b6 47. Kc3 b5 48. Kd3 b4 0-1

[Event "XIX Najdorf Memorial 2019"]
[Site "Warsaw"]
[Date "2019.07.14"]
[Round "9.19"]
[White "Godzwon, Iwo"]
[Black "Jaskolka, Tomasz"]
[Result "1-0"]
[ECO "C06"]
[WhiteElo "2285"]
[BlackElo "2236"]
[Annotator "ChessBase"]
[PlyCount "171"]
[EventDate "2019.07.06"]
[EventType "swiss"]
[EventCountry "POL"]
[SourceTitle "playchess.com"]
[Source "ChessBase"]
[SourceQuality "1"]
[TimeControl "40/5400+30:1800+30"]

1. e4 e6 2. d4 d5 3. Nd2 Nf6 4. e5 Nfd7 5. Bd3 c5 6. c3 Nc6 7. Ne2 cxd4 8. cxd4 f6 9. exf6 Nxf6 10. O-O Bd6 11. Nf3 Qc7 12. Bg5 O-O 13. Bh4 Nh5 14. Qc2 h6 15. Bh7+ Kh8 16. Bg6 Rxf3 17. Bxh5 Bxh2+ 18. Kh1 Rf5 19. Bg6 Bd6 20. Bxf5 exf5 21. Rae1 Qf7 22. Bg3 Bb4 23. Rd1 Bd7 24. Qd3 Re8 25. Kg1 g5 26. f4 Re4 27. fxg5 hxg5 28. Nc3 Bxc3 29. bxc3 f4 30. Bh2 Qe6 31. Qb1 Re2 32. Rde1 Qe3+ 33. Kh1 f3 34. Rxe2 fxe2 35. Re1 Qf2 36. Rg1 Bf5 37. Qe1 Qxe1 38. Rxe1 Bd3 39. Bc7 Kh7 40. Kg1 Kg6 41. Kf2 Kf5 42. Rh1 Bc4 43. Rh7 Ke4 44. Rh3 g4 45. Re3+ Kf5 46. Re8 b5 47. Bd6 a5 48. Rc8 Ke4 49. Rxc6 Kd3 50. Ke1 Kxc3 51. a3 b4 52. axb4 axb4 53. Bxb4+ Kxb4 54. Kd2 e1=Q+ 55. Kxe1 Kc3 56. Rg6 Kxd4 57. Kd2 Ke5 58. Rxg4 Ba2 59. Ke3 Bb1 60. Rg5+ Ke6 61. Kf4 Be4 62. g3 Kf6 63. Rg8 Kf7 64. Rb8 Bc2 65. Rb6 d4 66. Rd6 d3 67. g4 Ke7 68. Ke5 Kf7 69. Rd7+ Kg6 70. Kf4 Kf6 71. Rd4 Ke6 72. g5 Kf7 73. Kg4 Kg6 74. Rd6+ Kg7 75. Rd7+ Kg6 76. Kf4 Bb1 77. Rd6+ Kf7 78. g6+ Ke7 79. g7 Ba2 80. Rxd3 Kf6 81. Rg3 Bg8 82. Rg5 Kf7 83. Kg4 Bh7 84. Kh5 Kg8 85. Kh6 Bf5 86. Rg2 1-0

[Event "XIX Najdorf Memorial 2019"]
[Site "Warsaw"]
[Date "2019.07.14"]
[Round "9.20"]
[White "Krasiewicz, Robert"]
[Black "Szustakowski, Antoni"]
[Result "0-1"]
[ECO "A46"]
[WhiteElo "2017"]
[BlackElo "2279"]
[Annotator "ChessBase"]
[PlyCount "80"]
[EventDate "2019.07.06"]
[EventType "swiss"]
[EventCountry "POL"]
[SourceTitle "playchess.com"]
[Source "ChessBase"]
[SourceQuality "1"]
[TimeControl "40/5400+30:1800+30"]

1. d4 Nf6 2. Nf3 e6 3. c4 d5 4. e3 a6 5. Nbd2 Nbd7 6. b3 Be7 7. Bd3 O-O 8. O-O dxc4 9. bxc4 c5 10. Qe2 cxd4 11. exd4 b6 12. Re1 Re8 13. Bb2 Bb7 14. Ng5 Nf8 15. h4 Qc7 16. g3 Rad8 17. Rac1 h6 18. Nge4 Nxe4 19. Bxe4 Bf6 20. Qe3 Bc8 21. Nf3 Nd7 22. g4 Be7 23. g5 hxg5 24. hxg5 Bd6 25. g6 f5 26. Ng5 Nf8 27. Qh3 Qe7 28. Nf7 Nxg6 29. Nxd8 Nf4 30. Qh1 fxe4 31. Rxe4 Qxd8 32. c5 Qg5+ 33. Kf1 Bd7 34. Re3 Bb5+ 35. Ke1 Ng2+ 36. Kd2 Bf4 37. Rcc3 bxc5 38. Rxc5 Bxe3+ 39. fxe3 Qxe3+ 40. Kc2 Ne1+ 0-1

[Event "XIX Najdorf Memorial 2019"]
[Site "Warsaw"]
[Date "2019.07.14"]
[Round "9.21"]
[White "Rakshitta Ravi"]
[Black "Siekanski, Janusz"]
[Result "0-1"]
[ECO "B80"]
[WhiteElo "2112"]
[BlackElo "2270"]
[Annotator "NA"]
[PlyCount "159"]
[EventDate "2019.07.06"]
[EventType "swiss"]
[EventCountry "POL"]
[SourceTitle "playchess.com"]
[Source "ChessBase"]
[SourceQuality "1"]
[TimeControl "40/5400+30:1800+30"]

1. e4 c5 2. Nc3 e6 3. Nge2 d6 4. d4 cxd4 5. Nxd4 Nf6 6. g3 Be7 7. Bg2 O-O 8. O-O Nc6 9. Re1 Bd7 10. Nxc6 Bxc6 11. a4 a6 12. a5 Qc7 13. Be3 Nd7 {[#]} 14. Ne2 $146 {B80: Sicilian Scheveningen: 6 g3 and 6 Be3, including English Attack} ({Predecessor:} 14. Qd2 Rae8 15. Ne2 Nc5 16. Nc3 Nd7 17. Bd4 h6 18. Na2 Bg5 19. Be3 Bf6 20. Rab1 Nc5 21. f3 Rc8 {½-½ (115) Robson,R (2667)-Movsesian,S (2629) chess.com INT 2019}) 14... Nc5 15. Nf4 b5 16. Bd4 e5 17. Bxc5 dxc5 18. Nd5 Bxd5 19. exd5 Bd6 20. c4 b4 21. Qa4 f5 22. Rad1 Qe7 23. Qc2 Rae8 24. Re2 g6 25. Rde1 Qd7 26. Kh1 Kg7 27. Ra1 Qe7 28. Rae1 Qd7 29. Ra1 Qf7 30. Rae1 Re7 31. Qa4 Rc8 32. Kg1 Qf6 33. Qc2 h5 34. f3 Rh8 35. Bh3 Rhe8 36. Bg2 Qg5 37. Qd2 Qf6 38. Qc2 Rb8 39. b3 Rbe8 40. Qb2 Kf7 41. Qc2 h4 42. g4 h3 43. Bxh3 Rh8 44. Bf1 e4 45. fxe4 Qd4+ 46. Kh1 Rxe4 47. Rxe4 $17 fxe4 48. Rxe4 Qf6 49. Kg1 Rxh2 50. Bg2 Qa1+ 51. Kf2 Qh1 52. Kf3 Rh3+ 53. Kf2 Bg3+ 54. Ke3 Qg1+ 55. Kf3 Bh4+ 56. Bxh3 Qg3+ 57. Ke2 Qxh3 58. Rf4+ Kg7 59. Qe4 Qh2+ 60. Kd3 Qb2 61. Rf1 Qxb3+ 62. Ke2 Qb2+ 63. Kf3 b3 64. d6 Qc3+ 65. Qe3 Qxc4 66. Rd1 b2 67. d7 Qc2 68. Qe5+ Kh7 69. d8=Q Qf2+ 70. Ke4 Qe2+ 71. Kf4 Qf2+ 72. Ke4 Qe2+ 73. Kf4 Qxe5+ 74. Kxe5 Bxd8 75. Kd5 Bxa5 76. Kxc5 Bd2 77. Rh1+ Kg7 78. Rb1 Bc1 79. g5 Kf7 80. Kd4 0-1

[Event "XIX Najdorf Memorial 2019"]
[Site "Warsaw"]
[Date "2019.07.14"]
[Round "9.22"]
[White "Antolak, Julia"]
[Black "Kubicka, Anna"]
[Result "1-0"]
[ECO "C95"]
[WhiteElo "2258"]
[BlackElo "2202"]
[Annotator "ChessBase"]
[PlyCount "133"]
[EventDate "2019.07.06"]
[EventType "swiss"]
[EventCountry "POL"]
[SourceTitle "playchess.com"]
[Source "ChessBase"]
[SourceQuality "1"]
[TimeControl "40/5400+30:1800+30"]

1. e4 e5 2. Nf3 Nc6 3. Bb5 a6 4. Ba4 Nf6 5. O-O Be7 6. Re1 b5 7. Bb3 d6 8. c3 O-O 9. h3 Nb8 10. d4 Nbd7 11. Nbd2 Bb7 12. Bc2 Re8 13. Nf1 Bf8 14. Ng3 g6 15. b3 Bg7 16. Bb2 c5 17. d5 Nb6 18. a4 bxa4 19. bxa4 Nc4 20. Bc1 Na5 21. Nh2 Qc7 22. Nhf1 Rab8 23. Ne3 c4 24. Ba3 Bc8 25. Bb4 Bf8 26. Qe2 Nb3 27. Bxb3 cxb3 28. Nc4 Bd7 29. Reb1 Rec8 30. Na5 Bh6 31. Nxb3 Bf4 32. Nf1 Ne8 33. Nfd2 f5 34. Na5 Bxd2 35. Qxd2 fxe4 36. Qe2 Nf6 37. Rd1 Be8 38. Qxa6 Ra8 39. Qb7 Qxb7 40. Nxb7 Bxa4 41. Rd2 Bb3 42. Rxa8 Rxa8 43. Bxd6 Bxd5 44. Bxe5 Bxb7 45. Bxf6 Bc6 46. Rd6 Rc8 47. Kh2 Kf7 48. Kg3 Be8 49. Bd4 Ke7 50. Ra6 Rc6 51. Ra7+ Bd7 52. Kf4 Re6 53. g4 h6 54. h4 Kd8 55. Be5 Rc6 56. Ra8+ Ke7 57. Rh8 g5+ 58. hxg5 hxg5+ 59. Kxg5 Rc5 60. Kf4 Rc4 61. Bd4 Rc8 62. Rxc8 Bxc8 63. g5 Bb7 64. Ke5 Ba8 65. Bc5+ Kf7 66. Kd6 Kg6 67. Be3 1-0

[Event "XIX Najdorf Memorial 2019"]
[Site "Warsaw"]
[Date "2019.07.14"]
[Round "9.23"]
[White "Cieslak, Wiktoria"]
[Black "Terletsky, Oleg"]
[Result "1-0"]
[ECO "C45"]
[WhiteElo "2001"]
[BlackElo "2408"]
[Annotator "ChessBase"]
[PlyCount "78"]
[EventDate "2019.07.06"]
[EventType "swiss"]
[EventCountry "POL"]
[SourceTitle "playchess.com"]
[Source "ChessBase"]
[SourceQuality "1"]
[TimeControl "40/5400+30:1800+30"]

1. e4 {[%emt 0:00:00]} e5 {[%emt 0:00:00]} 2. Nf3 {[%emt 0:00:00]} Nc6 {[%emt 0:00:01]} 3. d4 {[%emt 0:00:00]} exd4 {[%emt 0:00:04]} 4. Nxd4 {[%emt 0:00:00]} Nf6 {[%emt 0:00:05]} 5. Nxc6 {[%emt 0:00:00]} bxc6 {[%emt 0:00:04]} 6. e5 {[%emt 0:00:01]} Qe7 {[%emt 0:00:03]} 7. Qe2 {[%emt 0:00:09]} Nd5 {[%emt 0:00:05]} 8. b3 {[%emt 0:00:11]} Qe6 {[%emt 0:07:41]} 9. g3 {[%emt 0:01:47]} a5 {[%emt 0:00:59]} 10. c4 {[%emt 0:00:53]} Nb6 {[%emt 0:00:13]} 11. a3 {[%emt 0:01:56]} a4 {[%emt 0:07:27]} 12. b4 {[%emt 0:01:38]} Bb7 {[%emt 0:10:08]} 13. c5 {[%emt 0:03:55]} Ba6 {[%emt 0:08:27]} 14. Qe4 {[%emt 0:01:57]} Bxf1 {[%emt 0:09:18]} 15. Rxf1 {[%emt 0:02:36]} Nd5 {[%emt 0:05:34]} 16. f4 {[%emt 0:07:18]} f5 {[%emt 0:00:56]} 17. Qe2 {[%emt 0:00:20]} Be7 {[%emt 0:08:46]} 18. Bb2 {[%emt 0:00:59]} O-O {[%emt 0:00:08]} 19. Nc3 {[%emt 0:00:46]} Nxc3 {[%emt 0:03:46]} 20. Bxc3 {[%emt 0:00:06]} Rad8 {[%emt 0:06:40]} 21. Rd1 {[%emt 0:02:08]} Rfe8 {[%emt 0:03:35]} 22. Rf3 {[%emt 0:03:20]} d5 {[%emt 0:01:06]} 23. exd6 {[%emt 0:06:32]} Bf6 {[%emt 0:03:26]} 24. Qxe6+ {[%emt 0:05:45]} Rxe6+ {[%emt 0:00:02]} 25. Kf2 {[%emt 0:00:30]} cxd6 {[%emt 0:00:24]} 26. cxd6 {[%emt 0:00:15]} Rexd6 {[%emt 0:02:21]} 27. Rxd6 {[%emt 0:00:13]} Rxd6 {[%emt 0:00:02]} 28. Bxf6 {[%emt 0:00:10]} gxf6 {[%emt 0:00:20]} 29. Rc3 {[%emt 0:00:34]} Kf7 {[%emt 0:00:42]} 30. Ke2 {[%emt 0:01:42]} h5 {[%emt 0:02:59]} 31. Rc5 {[%emt 0:00:20]} Ke6 {[%emt 0:00:22]} 32. Ra5 {[%emt 0:00:52]} Rd4 {[%emt 0:00:27]} 33. Rxa4 {[%emt 0:00:31]} h4 {[%emt 0:01:08]} 34. Ra5 {[%emt 0:00:29]} hxg3 {[%emt 0:00:52]} 35. hxg3 {[%emt 0:00:05]} Rc4 {[%emt 0:00:08]} 36. Kd2 {[%emt 0:01:45]} Rd4+ {[%emt 0:00:27]} 37. Kc2 {[%emt 0:04:46]} Re4 {[%emt 0:01:00]} 38. Rc5 {[%emt 0:00:29]} Re3 {[%emt 0:00:10]} 39. Rxc6+ {[%emt 0:00:07]} Kd5 1-0

[Event "XIX Najdorf Memorial 2019"]
[Site "Warsaw"]
[Date "2019.07.14"]
[Round "9.24"]
[White "Sanz Wawer, Daniel"]
[Black "Czerw, Dawid"]
[Result "1-0"]
[ECO "D30"]
[WhiteElo "2154"]
[BlackElo "2326"]
[Annotator "ChessBase"]
[PlyCount "89"]
[EventDate "2019.07.06"]
[EventType "swiss"]
[EventCountry "POL"]
[SourceTitle "playchess.com"]
[Source "ChessBase"]
[SourceQuality "1"]
[TimeControl "40/5400+30:1800+30"]

1. d4 {[%emt 0:00:00]} Nf6 {[%emt 0:00:00]} 2. c4 {[%emt 0:00:00]} e6 {[%emt 0:00:00]} 3. Nf3 {[%emt 0:00:05]} d5 {[%emt 0:00:11]} 4. e3 {[%emt 0:00:41]} c6 {[%emt 0:00:07]} 5. Nbd2 {[%emt 0:00:31]} Nbd7 {[%emt 0:03:40]} 6. Bd3 {[%emt 0:00:12]} Bd6 {[%emt 0:02:47]} 7. O-O {[%emt 0:00:18]} O-O {[%emt 0:00:36]} 8. e4 {[%emt 0:02:21]} e5 {[%emt 0:18:04]} 9. cxd5 {[%emt 0:01:51]} cxd5 {[%emt 0:00:08]} 10. exd5 {[%emt 0:04:26]} exd4 {[%emt 0:01:25]} 11. Ne4 {[%emt 0:09:43]} Bb8 {[%emt 0:14:18]} 12. Bg5 {[%emt 0:08:50]} h6 {[%emt 0:05:02]} 13. Bh4 {[%emt 0:00:53]} Qb6 {[%emt 0:07:18]} 14. Nxf6+ {[%emt 0:01:17]} Nxf6 {[%emt 0:00:19]} 15. Bc4 {[%emt 0:01:59]} g5 {[%emt 0:22:03]} 16. Bg3 {[%emt 0:00:52]} Qxb2 {[%emt 0:00:14]} 17. Bxb8 {[%emt 0:01:49]} Rxb8 {[%emt 0:00:08]} 18. Nxd4 {[%emt 0:02:50]} Bd7 {[%emt 0:04:32]} 19. Qd3 {[%emt 0:10:39]} Qb4 {[%emt 0:02:02]} 20. h4 {[%emt 0:06:33]} Qd6 {[%emt 0:01:34]} 21. hxg5 {[%emt 0:08:52]} hxg5 {[%emt 0:00:02]} 22. Rfe1 {[%emt 0:08:31]} Ng4 {[%emt 0:03:53]} 23. Nf3 {[%emt 0:00:05]} Rfe8 {[%emt 0:01:44]} 24. Bb3 {[%emt 0:01:51]} Ne5 {[%emt 0:06:21]} 25. Qe3 {[%emt 0:03:49]} Nxf3+ {[%emt 0:00:39]} 26. Qxf3 {[%emt 0:00:04]} Qf4 {[%emt 0:01:28]} 27. Qxf4 {[%emt 0:07:22]} gxf4 {[%emt 0:00:01]} 28. d6 {[%emt 0:01:21]} Bc6 {[%emt 0:01:23]} 29. Rxe8+ {[%emt 0:01:57]} Rxe8 {[%emt 0:00:09]} 30. Rd1 {[%emt 0:00:17]} f3 {[%emt 0:01:07]} 31. gxf3 {[%emt 0:00:47]} Bxf3 {[%emt 0:01:06]} 32. Rd4 {[%emt 0:01:01]} Bc6 {[%emt 0:01:51]} 33. Rg4+ {[%emt 0:01:27]} Kf8 {[%emt 0:00:21]} 34. Rf4 {[%emt 0:01:41]} Re1+ {[%emt 0:00:16]} 35. Kh2 {[%emt 0:00:04]} Rh1+ {[%emt 0:00:03]} 36. Kg3 {[%emt 0:00:05]} Rh7 {[%emt 0:00:16]} 37. Rf5 {[%emt 0:03:01]} Rh6 {[%emt 0:01:35]} 38. Rxf7+ {[%emt 0:00:47]} Ke8 {[%emt 0:00:01]} 39. Re7+ {[%emt 0:00:19]} Kd8 {[%emt 0:01:00]} 40. Be6 {[%emt 0:00:00]} Rf6 {[%emt 0:00:00]} 41. Kg4 {[%emt 0:12:19]} Be4 {[%emt 0:06:49]} 42. Kg5 {[%emt 0:01:31]} Rxf2 {[%emt 0:00:05]} 43. Rd7+ {[%emt 0:00:34]} Ke8 {[%emt 0:00:20]} 44. Rc7 {[%emt 0:00:28]} Rc2 {[%emt 0:00:31]} 45. Rc8+ {[%emt 0:00:11]} 1-0